Cogmind - Beta 17.1 @@@ ROGUE MODE // 2026.09.20 @ 18:41:11 Player: 4R-ZE3 Result: Self-destructed Performance ------------- Evolutions (7) 3500 Regions Visited (23) 4600 Robots Destroyed (393) 1965 Value Destroyed (18150) 18150 Prototype IDs (57) 1140 Alien Tech Used (1) 200 Bonus (8363) 8363 TOTAL SCORE: 37918 Bonus ------- Triggered High Security 500 High Alert Combat Kills 4393 Follower Combat Kills 1911 Network Hubs Disabled 400 Met Data Miner 300 Met Zhirov 300 Built Enhanced Grunts 300 A7 Reached Mainframe 300 Met R17 at Cetus 500 Friendly Fire -541 Cogmind --------- Core Integrity 1085/1300 Matter 300/300 Energy 988/988 System Corruption 16% Temperature Cool (94) Movement Treading (181) Location -3/Research Parts ------- > --- POWER (3) -------- Antimatter-Quantum Reactor > --- PROPULSION (6) --- Treaded Biometal Exoskeleton > --- UTILITY (8) ------ Armored Scrap Engine Huge Storage Unit Graphene Brace > --- WEAPON (4) ------- Hpw. Charged Gamma Construct/C > --- INVENTORY (25) --- Quantum Reactor Flexi-carbon Leg Electron Diverter Electron Diverter Experimental Power Amplifier Advanced Cryofiber Web Advanced Cooling System Advanced Cooling System Matter Compressor (250) Advanced Trap Scanner Advanced Signal Interpreter Improved Transmission Jammer Experimental Thermal Shield Experimental EM Shield Advanced Component Analysis Suite Improved System Restoration Module Transdimensional Reconstructor Railgun Peak State ------------ > --- POWER ------------ Antimatter-Quantum Reactor > --- PROPULSION ------- Treaded Biometal Exoskeleton > --- UTILITY ---------- Armored Scrap Engine Advanced Cooling System Huge Storage Unit Advanced Signal Interpreter Experimental Targeting Computer Experimental Phase Shifter Advanced Force Field > --- WEAPON ----------- Hpw. Charged Gamma Construct/C > --- INVENTORY -------- Quantum Reactor Centrium Heavy Treads Centrium Heavy Treads Electron Diverter Electron Diverter Electron Diverter Experimental Power Amplifier Advanced Cryofiber Web Advanced Cooling System Advanced Cooling System Matter Compressor Advanced Trap Scanner Advanced Sensor Array Advanced Signal Interpreter Improved Transmission Jammer Graphene Brace Experimental Thermal Shield Experimental EM Shield Experimental EM Shield Advanced Component Analysis Suite Improved System Restoration Module Transdimensional Reconstructor Disruptor Cannon [Rating: 171] Favorites ----------- Power Constructs Engine Angular Momentum Engine Power Core Micro Fission Core Reactor Constructs Propulsion Constructs Treads Constructs Leg Improved Titanium Leg Wheel Compact Wheel Hover Unit Antigrav System Utility Armored Scrap Engine Device Armored Scrap Engine Storage Huge Storage Unit Processor Advanced Signal Interpreter Hackware Hacking Suite Protection Tower Shield Weapon Constructs Energy Gun Field Laser Energy Cannon Constructs Ballistic Gun Minigun Ballistic Cannon Battle Cannon Impact Weapon Makeshift Hammer Build | -11 -10 -10 -8 -8 -8 -6 -6 -6 -6 -6 -6 -5 -5 -5 -5 -5 -4 -4 -4 -4 -4 -4 -3 ------- Run | Yrd Mat Sub Mat Sto Rec Fac Was Fac Low Low Dat Pro Fac Upp Upp Zhi Pro Fac Ext Cet Arc Hub Res Slots Evolved 14 | . . . 4 . . 4 . . . . . . 2 . . . . 2 . . . . 2 Power 2 | . . . . . . 1 . . . . . . . . . . . . . . . . 1 Propulsion 4 | . . . 2 . . 1 . . . . . . 1 . . . . . . . . . . Utility 6 | . . . 1 . . 2 . . . . . . 1 . . . . 1 . . . . 1 Weapon 2 | . . . 1 . . . . . . . . . . . . . . 1 . . . . . Parts Attached 132 | . 7 5 24 17 8 15 1 6 . 3 . 1 13 3 1 3 1 6 5 2 2 5 4 Power 13 | . 1 2 2 3 . 1 . 1 . . . . 1 . . . . 1 1 . . . . Engine 10 | . 1 1 2 3 . 1 . 1 . . . . 1 . . . . . . . . . . Core 3 | . . 1 . . . . . . . . . . . . . . . 1 1 . . . . Reactor . | . . . . . . . . . . . . . . . . . . . . . . . . Propulsion 24 | . 2 1 9 3 4 . . . . 1 . . 2 1 . 1 . . . . . . . Treads 5 | . 2 1 1 . 1 . . . . . . . . . . . . . . . . . . Leg 11 | . . . 5 3 . . . . . . . . 2 1 . . . . . . . . . Wheel 6 | . . . 3 . 3 . . . . . . . . . . . . . . . . . . Hover 2 | . . . . . . . . . . 1 . . . . . 1 . . . . . . . Flight . | . . . . . . . . . . . . . . . . . . . . . . . . Utility 62 | . 2 . 5 3 1 12 1 2 . 1 . 1 8 2 1 2 1 5 4 1 1 5 4 Device 39 | . 1 . 3 2 1 6 1 2 . . . 1 3 2 1 1 1 4 4 . 1 2 3 Storage 6 | . 1 . . 1 . 1 . . . 1 . . 1 . . . . . . . . 1 . Processor 9 | . . . . . . 2 . . . . . . 3 . . . . 1 . 1 . 1 1 Hackware 2 | . . . . . . 1 . . . . . . 1 . . . . . . . . . . Protection 6 | . . . 2 . . 2 . . . . . . . . . 1 . . . . . 1 . Artifact . | . . . . . . . . . . . . . . . . . . . . . . . . Weapon 33 | . 2 2 8 8 3 2 . 3 . 1 . . 2 . . . . . . 1 1 . . Energy Gun 15 | . . . 6 6 1 . . 1 . . . . . . . . . . . 1 . . . Energy Cannon 5 | . 2 . . 1 . 1 . . . . . . 1 . . . . . . . . . . Ballistic Gun 6 | . . . . 1 2 1 . 1 . . . . . . . . . . . . 1 . . Ballistic Cannon 5 | . . 2 2 . . . . . . . . . 1 . . . . . . . . . . Launcher . | . . . . . . . . . . . . . . . . . . . . . . . . Special Weapon . | . . . . . . . . . . . . . . . . . . . . . . . . Impact Weapon 2 | . . . . . . . . 1 . 1 . . . . . . . . . . . . . Slashing Weapon . | . . . . . . . . . . . . . . . . . . . . . . . . Piercing Weapon . | . . . . . . . . . . . . . . . . . . . . . . . . Special Melee Weapon . | . . . . . . . . . . . . . . . . . . . . . . . . Unidentified Prototypes 19 | . . . 2 6 1 1 . . . . . . 1 . . 2 . . . 1 2 3 . Corrupted Parts 1 | . . . . . . 1 . . . . . . . . . . . . . . . . . System Corruption 4 | . . . . . . 4 . . . . . . . . . . . . . . . . . Parts Lost 40 | . 1 3 5 6 3 2 1 1 . . . 3 . 1 . . . 1 2 . . 2 9 Power 7 | . 1 1 1 . . . . 1 . . . 1 . . . . . 1 1 . . . . Propulsion 9 | . . 2 1 1 3 . 1 . . . . . . . . . . . . . . . 1 Utility 18 | . . . 1 2 . 2 . . . . . 2 . 1 . . . . 1 . . 2 7 Weapon 6 | . . . 2 3 . . . . . . . . . . . . . . . . . . 1 Highest Loss Streak 5 | . 1 2 2 3 1 1 1 1 . . . 3 . 1 . . . 1 1 . . 1 5 To Critical Strikes 2 | . . . . . . . 1 . . . . . . . . . . . 1 . . . . Average Backups 18 | . 8 13 13 20 16 22 18 4 5 9 13 18 19 19 20 19 18 22 24 24 21 20 22 Power 1 | . 1 . 1 2 3 3 2 . . . . . . 1 1 1 1 . 1 1 2 2 1 Propulsion 2 | . 1 1 . . 4 . . . . 1 3 5 3 3 3 1 1 1 . . 3 3 3 Utility 8 | . 1 5 4 3 5 9 8 2 3 5 6 5 8 9 10 9 10 11 12 12 10 11 13 Weapon 6 | . 3 4 6 15 3 8 6 2 1 2 4 8 6 5 6 6 5 7 9 8 3 3 2 Tool/Special . | . . . . . . . . . . . . . . . . . . . . . . . . Unused Backups 196 | . 10 1 5 9 43 24 16 2 1 . . 8 16 3 . 2 1 15 5 11 2 2 20 Power 24 | . 1 . . 3 1 6 3 . . . . . . 1 . 1 . 1 2 2 1 . 2 Propulsion 53 | . 5 . . . 15 6 1 1 . . . 2 5 . . 1 . 9 1 . . . 7 Utility 23 | . 1 . 2 . 1 1 6 . . . . . 1 1 . . . 1 . 3 . . 6 Weapon 95 | . 3 1 3 6 26 11 6 1 1 . . 6 10 1 . . 1 4 2 6 1 2 4 Tool/Special 1 | . . . . . . . . . . . . . . . . . . . . . . . 1 Average Slot Usage (%) 56 | . 98 94 85 95 57 46 43 50 59 60 60 51 48 49 52 48 52 49 48 47 47 46 46 Engine 4 | . 13 8 8 9 8 6 6 7 12 13 13 8 2 . . . . . . . . . . Core 1 | . . 5 . . . . . . . . . . 3 5 5 5 5 4 3 . . . . Reactor 1 | . . . . . . . . . . . . . . . . . . 1 2 5 5 5 4 Treads 2 | . 27 22 6 . 1 1 . . . . . . . . . . . . . 1 5 5 1 Leg 3 | . . . 10 33 1 . . . 5 6 6 6 5 7 11 4 . 1 2 3 . . 2 Wheel 2 | . . . 11 . 9 . . . . . . . . . . . . . . . . . . Device 15 | . 12 14 9 15 10 12 11 19 19 13 13 16 16 17 17 16 17 18 20 20 21 18 20 Storage 6 | . 14 14 8 7 9 6 4 . . 5 6 6 5 5 5 5 5 5 5 5 5 5 4 Processor 3 | . . . . . . 5 6 6 6 6 6 2 3 5 5 5 5 6 5 5 5 6 7 Energy Gun 2 | . . . 12 22 7 . . . . . . . . . . . . . . . . . . Energy Cannon 3 | . 24 19 . 3 . 1 . 2 6 6 6 3 1 5 5 5 2 1 2 2 5 2 3 Ballistic Cannon 2 | . . 8 12 . 3 4 6 3 . . . 2 3 . . . 2 3 2 2 . 2 . Peak Build Rating 171 | . 10 17 63 69 47 82 78 81 76 79 76 80 106 105 104 105 112 128 136 148 155 154 171 Average Rating 85 | . 9 14 29 50 38 71 72 73 73 75 76 73 94 100 102 98 107 120 130 140 148 147 164 On Entrance 80 | 6 6 10 16 63 44 47 74 60 74 75 76 76 73 98 103 102 105 112 127 136 148 146 152 Avg Prop Armor Cover (%) 5 | . . . 6 . 11 . . 18 . . . . . 3 3 3 . . . . . . . Naked Turns . | . . . . . . . . . . . . . . . . . . . . . . . . Heaviest Build 161 | 11 34 34 80 149 100 115 107 34 111 72 72 72 104 82 82 82 83 136 141 151 143 148 161 Greatest Support 280 | 20 40 40 90 100 85 56 43 55 94 94 94 101 117 121 101 118 100 142 129 129 129 129 280 Greatest Overweight (x) 10 | . . 1 1 1 7 2 2 10 1 . . . 1 . . . . 1 1 1 1 1 1 Average Overweight (x) . | . . . . . 2 1 1 . . . . . . . . . . . . 1 1 1 . Largest Inventory Capacity 25 | . 15 15 15 25 25 25 25 5 25 20 20 20 25 20 20 20 20 25 25 25 25 25 25 Average Capacity 21 | . 9 15 15 22 25 25 20 5 5 18 20 20 20 20 20 20 20 24 25 25 25 25 25 Most Carried 25 | . 11 15 15 25 25 25 23 5 5 13 13 20 20 20 20 20 20 25 25 25 25 25 25 Average Carried 19 | . 8 13 14 20 16 22 18 4 4 9 13 18 19 19 19 19 19 22 24 24 24 23 23 Final Capacity 25 | 8 15 15 15 25 25 25 5 5 5 20 20 20 20 20 20 20 20 25 25 25 25 25 25 Final Carried 25 | 6 11 15 13 25 18 22 4 5 5 13 13 14 19 20 20 20 19 22 25 25 23 25 18 Scrap Engine Consumption 335 | . . . . . 87 52 3 20 4 1 . 15 25 5 . 9 3 27 32 17 4 8 23 Constructs Created 4 | . . . . . 3 . . . . . . . 1 . . . . . . . . . . Constructs Modified 146 | . . . . . 38 26 1 6 3 . . 5 10 1 . 3 2 11 13 10 1 3 13 Class Distribution -------------------- 68% | Construct 11% | Commander-Construct 6% | Mutant 4% | Scavenger-Gunner 3% | Gunner Dominant Class ---------------- Mutant | -10/Materials Mutant | -10/Subcaves Tank | -8/Materials Scavenger-Gunner | -8/Storage Construct | -8/Recycling Construct | -6/Factory Construct | -6/Waste Construct | -6/Factory Construct | -6/Lower Caves Construct | -6/Lower Caves Construct | -6/Data Miner Construct | -5/Proximity Caves Construct | -5/Factory Construct | -5/Upper Caves Construct | -5/Upper Caves Construct | -5/Zhirov Construct | -4/Proximity Caves Construct | -4/Factory Construct | -4/Extension Commander-Construct | -4/Cetus Commander-Construct | -4/Archives Construct | -4/Hub_04(d) Construct | -3/Research Resources | -11 -10 -10 -8 -8 -8 -6 -6 -6 -6 -6 -6 -5 -5 -5 -5 -5 -4 -4 -4 -4 -4 -4 -3 ----------- Run | Yrd Mat Sub Mat Sto Rec Fac Was Fac Low Low Dat Pro Fac Upp Upp Zhi Pro Fac Ext Cet Arc Hub Res Matter Collected 11313 | 189 144 125 422 363 592 1797 439 658 325 66 . 323 713 481 551 115 584 862 654 232 62 749 867 Remotely 268 | . . . . . . 268 . . . . . . . . . . . . . . . . . Salvage Created 23269 | . 698 252 518 1757 1745 2087 843 486 565 128 . 1131 730 402 229 253 262 953 1914 818 102 1121 6275 Parts 916 | . 42 8 34 68 72 108 16 30 18 2 . 37 38 19 8 4 10 76 73 40 2 62 149 Haulers Intercepted 7 | . . . 1 4 . . . . . . . . . . . . . . . . . 1 1 Recyclers Shooed 6 | . . . . . 4 1 . 1 . . . . . . . . . . . . . . . Parts Field Recycled . | . . . . . . . . . . . . . . . . . . . . . . . . Retrieved Matter . | . . . . . . . . . . . . . . . . . . . . . . . . Parts Self-Destructed 30 | . . 4 . . . . . . 14 . . 1 . 6 2 . 3 . . . . . . Prevented 58 | . . . . . . . . . 4 1 . 27 . 8 5 2 11 . . . . . . Parts Restored . | . . . . . . . . . . . . . . . . . . . . . . . . Kills | -11 -10 -10 -8 -8 -8 -6 -6 -6 -6 -6 -6 -5 -5 -5 -5 -5 -4 -4 -4 -4 -4 -4 -3 ------- Run | Yrd Mat Sub Mat Sto Rec Fac Was Fac Low Low Dat Pro Fac Upp Upp Zhi Pro Fac Ext Cet Arc Hub Res Combat Hostiles Destroyed 314 | . 18 8 15 29 7 34 3 7 10 2 . 19 14 6 5 . 8 13 20 10 1 12 73 Melee 1 | . . . . . . . . 1 . . . . . . . . . . . . . . . Guns 38 | . 2 . 8 22 6 . . . . . . . . . . . . . . . . . . Cannons 211 | . 16 8 7 6 . 30 3 6 3 1 . 12 12 5 4 . 8 13 19 10 1 12 35 AOE 10 | . . . . . . 4 . . 6 . . . . . . . . . . . . . . Classes Destroyed 23 | . 4 2 1 5 1 3 1 1 1 . . . . . . . 1 . . . . 1 2 Worker 11 | . 1 . . 2 . 2 . . . . . . . . . . . 1 . . . 5 . Builder 20 | . 2 . . . 13 2 . . . . . . . . . . . 3 . . . . . Tunneler 1 | . . . . . . . . . . . . . . . . . . . . . . 1 . Hauler 7 | . . . 1 4 . . . . . . . . . . . . . . . . . 1 1 Recycler 23 | . . . . . 16 2 . . . . . . . . . . . 1 2 . . . 2 Carrier 3 | . . . . . . . . . . . . . . . . . . . . . . . 3 Mechanic 2 | . . . . . . . . 1 . . . . . . . . . 1 . . . . . Drone 2 | . . . . . . . . . . . . . . . . . 2 . . . . . . Watcher 8 | . . . . . . 3 . 1 . . . . 1 . . . . . . . . . 3 Swarmer 53 | . 3 3 7 . . 5 . . 4 . . . 4 4 3 . 5 5 3 . . . 7 Saboteur 2 | . . . . . . 1 . . . . . 1 . . . . . . . . . . . Grunt 113 | . 15 . 5 16 . 10 . 1 4 1 . 10 2 . 1 . . . 9 5 . 4 30 Brawler 9 | . . . . 3 . 1 . . . . . 2 . . . . . . . . . . 3 Duelist 11 | . . . . 2 . 2 . . 2 . . 2 . . . . . . . . . . 3 Protector 3 | . . . . 1 . . . . . . . . . . . . . . . . . 1 1 Sentry 40 | . . 1 3 5 3 6 . . . 1 . . 2 . . . 1 . 6 . 1 . 11 Demolisher 2 | . . . . 2 . . . . . . . . . . . . . . . . . . . Hunter 27 | . . . . 1 . 3 . 1 . . . 4 2 2 . . . 2 2 1 . 3 6 Programmer 34 | . . . . . . 6 . 4 . . . . 4 . 1 . . 6 . . . 2 11 Heavy 1 | . . . . . . . . . . . . . . . . . . . . . . . 1 Compactor 3 | . . . . . . . 3 . . . . . . . . . . . . . . . . Cetus Guard 4 | . . . . . . . . . . . . . . . . . . . . 4 . . . Lightning 2 | . . . . . . . . . . . . . . . . . . . . . . 2 . Subdweller 8 | . . 4 . . 4 . . . . . . . . . . . . . . . . . . Decomposer 1 | . . . . . . . . . . . . . . . 1 . . . . . . . . Samaritan 5 | . . . . . . . . . 3 . . . . 2 . . . . . . . . . Thug 3 | . . . . 1 . . . 2 . . . . . . . . . . . . . . . Guerrilla 1 | . . . . . . . . . . . . . . . . . . . 1 . . . . Best Kill Streak 15 | . 5 3 5 5 5 5 2 5 4 1 . 5 4 4 3 . 5 7 5 3 1 6 15 Combat Bots Only 13 | . 3 3 5 5 2 5 2 4 4 1 . 5 4 4 3 . 5 5 5 3 1 3 13 Max Kills in Single Turn 5 | . 1 2 2 2 1 4 1 1 4 1 . 1 1 1 1 . 1 2 1 2 1 5 1 Gunslinging . | . . . . . . . . . . . . . . . . . . . . . . . . Exploded 4 | . . . . . . 1 . . 4 . . . . . . . . . . . . . . Melee 1 | . . . . . . . . 1 . . . . . . . . . . . . . . . Uniques/NPCs Destroyed . | . . . . . . . . . . . . . . . . . . . . . . . . Combat | -11 -10 -10 -8 -8 -8 -6 -6 -6 -6 -6 -6 -5 -5 -5 -5 -5 -4 -4 -4 -4 -4 -4 -3 -------- Run | Yrd Mat Sub Mat Sto Rec Fac Was Fac Low Low Dat Pro Fac Upp Upp Zhi Pro Fac Ext Cet Arc Hub Res Hostile Shots Fired 1938 | . 61 44 71 93 30 360 25 43 5 9 . 53 76 38 13 . 45 93 102 17 4 136 620 Missed 614 | . 18 13 21 16 10 113 3 18 4 4 . 17 28 8 2 . 19 26 37 5 1 22 229 Hits 1324 | . 43 31 50 77 20 247 22 25 1 5 . 36 48 30 11 . 26 67 65 12 3 114 391 Melee 39 | . . . . 1 . 3 22 . . . . . . . . . . . . . . . 13 Projectile 1285 | . 43 31 50 76 20 244 . 25 1 5 . 36 48 30 11 . 26 67 65 12 3 114 378 AOE 11 | . . . . 10 . . . . . . . . . . . . . . . . . . 1 Critical Strikes 91 | . 1 1 1 5 . 8 14 3 . . . . 1 . 1 . . 4 7 2 . 10 33 Actively Blocked 32 | . . . . . . . . . . . . . . . . . . . 6 2 . 10 14 Part Disruptions 1 | . . . . . . . . . . . . . . . . . . . . . . . 1 Damage Taken 22646 | . 456 534 555 1555 392 3592 1017 453 15 37 . 597 891 481 199 . 408 1247 1322 172 83 3193 5447 Core 1965 | . 55 93 68 89 40 501 106 55 . 6 . 18 40 52 16 . 46 137 110 . . 318 215 Absorbed by Shields 781 | . . . . . . . . . . . . . . . . . . . 215 66 . . 500 Reduced by Siege Mode 55 | . . . . . . . . . . . . . . . . . . . . . . 55 . Ignored by Resistances 3230 | . . . . . . . . . . . . . . . . . . . . . . . 3230 Regen/Repaired (Parts) 9964 | . . . . . 23 2206 51 617 168 5 . 185 1039 92 17 79 183 622 719 392 27 593 2946 Core Remaining (%) 59 | 100 . 40 . . 64 . . . . . . 19 . . . . 84 . . . . 50 . Volleys Fired 1301 | . 51 28 39 84 174 158 62 25 7 4 . 54 54 29 30 6 39 73 58 27 3 71 225 Largest 5 | . 2 2 3 5 3 1 1 1 1 1 . 1 1 1 1 1 1 1 1 1 1 1 1 Hottest 318 | . 136 136 189 318 179 70 70 70 70 70 . 70 98 91 91 91 136 136 136 240 99 99 99 Shots Fired 1637 | . 102 55 100 224 232 157 62 25 7 4 . 54 54 29 30 6 39 73 58 27 3 71 225 Gun 410 | . 34 . 45 188 141 . . 1 . . . . . . . . . . . 1 . . . Cannon 1227 | . 68 55 55 36 91 157 62 24 7 4 . 54 54 29 30 6 39 73 58 26 3 71 225 Launcher . | . . . . . . . . . . . . . . . . . . . . . . . . Special . | . . . . . . . . . . . . . . . . . . . . . . . . Kinetic 660 | . 34 16 55 12 119 157 62 6 . . . 3 20 . . . 15 48 29 13 . 71 . Thermal 536 | . 68 39 36 209 113 . . 19 . . . . 27 . . . . . 8 14 3 . . Explosive . | . . . . . . . . . . . . . . . . . . . . . . . . Electromagnetic 441 | . . . 9 3 . . . . 7 4 . 51 7 29 30 6 24 25 21 . . . 225 Robot Hit Streak 36 | . 14 10 18 12 14 19 35 36 6 5 . 10 9 4 7 8 4 4 9 5 1 12 20 Robot Miss Streak 10 | . 3 2 3 4 5 7 1 2 1 . . 5 3 6 1 1 10 4 3 2 1 5 3 Penetration Max 1 | . . . . . . 1 . . . . . . 1 . . . . 1 1 1 . 1 . Secondary Targets 2 | . . . . 2 . . . . . . . . . . . . . . . . . . . Max Gunslinging Chain 1 | . . . . 1 . . . . . . . . . . . . . . . . . . . Shots Hit Robots 997 | . 68 35 57 120 134 110 54 25 9 4 . 36 35 11 12 5 10 28 40 16 1 38 149 Core Hits 411 | . 25 11 23 60 44 61 7 9 12 . . 12 13 7 7 2 7 15 22 7 1 20 46 Critical Kills 2 | . . . . . 1 . . . . . . . 1 . . . . . . . . . . Critical Parts Destroyed 2 | . . . . . . . . . 1 . . . . . . . . 1 . . . . . Critical Strikes 18 | . . 1 3 2 6 . . . 1 . . . 1 . . . . 1 1 2 . . . Burn 9 | . . . 2 2 5 . . . . . . . . . . . . . . . . . . Meltdown 1 | . . . . . . . . . . . . . 1 . . . . . . . . . . Destroy 2 | . . . . . 1 . . . . . . . . . . . . 1 . . . . . Blast 5 | . . 1 1 . . . . . . . . . . . . . . . 1 2 . . . Smash 1 | . . . . . . . . . 1 . . . . . . . . . . . . . . Melee Attacks 14 | . . . . . . . . 11 3 . . . . . . . . . . . . . . Impact 14 | . . . . . . . . 11 3 . . . . . . . . . . . . . . Slashing . | . . . . . . . . . . . . . . . . . . . . . . . . Piercing . | . . . . . . . . . . . . . . . . . . . . . . . . Sneak Attacks 4 | . . . . . . . . 1 3 . . . . . . . . . . . . . . Combat Hostiles . | . . . . . . . . . . . . . . . . . . . . . . . . Follow-up Attacks . | . . . . . . . . . . . . . . . . . . . . . . . . Damage Inflicted 56228 | . 1205 753 1127 2300 3038 6448 3518 1683 814 216 . 2088 2076 892 479 305 699 2696 4876 2554 107 5584 12770 Guns 4410 | . 199 . 599 1966 1624 . . 22 . . . . . . . . . . . . . . . Cannons 49457 | . 1006 753 527 334 1406 5592 3518 1243 330 216 . 2088 2076 892 479 305 699 2696 4876 2554 107 4990 12770 Explosions 1959 | . . . . . . 856 . 192 317 . . . . . . . . . . . . 594 . Melee 393 | . . . . . . . . 226 167 . . . . . . . . . . . . . . Ramming 9 | . . . 1 . 8 . . . . . . . . . . . . . . . . . . Kinetic 24571 | . 199 252 527 . 1638 5592 3518 295 . . . 165 684 . . . 163 2493 2698 1357 . 4990 . Thermal 10749 | . 1006 501 477 2300 1392 385 . 1162 317 . . . 1093 . . . . . 812 1197 107 . . Explosive 471 | . . . . . . 471 . . . . . . . . . . . . . . . . . Electromagnetic 20035 | . . . 122 . . . . . 330 216 . 1923 299 892 479 305 536 203 1366 . . 594 12770 Impact 393 | . . . . . . . . 226 167 . . . . . . . . . . . . . . Slashing . | . . . . . . . . . . . . . . . . . . . . . . . . Piercing . | . . . . . . . . . . . . . . . . . . . . . . . . Highest Corruption 16 | . . . . 1 1 5 . 1 1 1 1 1 1 1 3 3 3 10 . . . 13 16 Average Corruption 2 | . . . . 1 1 4 . 1 1 1 1 1 1 1 2 3 3 6 . . . 11 3 Corruption Purged 15 | . . . . . . 5 . . . . . . . . . . . 10 . . . . . Corruption Blocked . | . . . . . . . . . . . . . . . . . . . . . . . . Effects 181 | . . . . 3 32 47 . 2 3 2 . 8 3 6 13 5 12 25 . . . 8 12 Message Errors 37 | . . . . . 7 10 . 1 1 1 . 3 . 1 3 2 3 2 . . . 3 . Matter Fused 40 | . . . . . 7 11 . . 2 . . 1 1 3 4 1 2 5 . . . 1 2 Heat Flow Errors 29 | . . . . . 5 6 . . . . . 1 . . 3 2 1 5 . . . 2 4 Energy Discharges 21 | . . . . 2 5 6 . 1 . . . 1 1 . 2 . 1 1 . . . 1 . Parts Fused 1 | . . . . . . . . . . . . . . . . . 1 . . . . . . Data Loss (minor) 36 | . . . . 1 6 11 . . . 1 . 1 1 2 1 . 3 5 . . . 1 3 Data Loss (major) 10 | . . . . . 1 1 . . . . . 1 . . . . 1 4 . . . . 2 Alerts 6 | . . . . . 1 1 . . . . . . . . . . . 3 . . . . 1 Weapon Failures 1 | . . . . . . 1 . . . . . . . . . . . . . . . . . Overload Shots 1 | . . . . . . . . . . . . . . . . . . . . 1 . . . Overflow Damage 6232 | . 10 . 26 1 76 191 . 280 156 22 . 10 267 121 . 34 38 631 458 312 . 1352 2247 Projectiles 5982 | . 10 . 26 1 70 154 . 269 . 22 . 10 267 121 . 34 38 631 458 312 . 1312 2247 Explosions 77 | . . . . . . 37 . . . . . . . . . . . . . . . 40 . Melee 173 | . . . . . 6 . . 11 156 . . . . . . . . . . . . . . Knockbacks 127 | . . 1 2 . 7 51 . 5 . . . 1 5 . . . . 14 8 . . 33 . Impact 2 | . . . . . . . . 2 . . . . . . . . . . . . . . . Kinetic 113 | . . 1 2 . 7 45 . 3 . . . 1 4 . . . . 12 6 . . 32 . Secondary 12 | . . . . . . 6 . . . . . . 1 . . . . 2 2 . . 1 . Self-Inflicted Damage 232 | . . . . . 4 116 . . . . . . . . . . . . . . . 112 . Shots 4 | . . . . . . 2 . . . . . . . . . . . . . . . 2 . Rammed 2 | . . . 1 . 1 . . . . . . . . . . . . . . . . . . Targets Rammed 2 | . . . 1 . 1 . . . . . . . . . . . . . . . . . . Kicked . | . . . . . . . . . . . . . . . . . . . . . . . . Crushed . | . . . . . . . . . . . . . . . . . . . . . . . . Highest Temperature 363 | . 270 30 153 363 278 239 349 150 . 30 . 274 90 98 250 227 257 224 22 22 . 97 127 Average Temperature 73 | . 82 20 43 89 65 42 163 67 . 13 . 89 41 50 70 94 30 125 12 16 . 40 63 Received Heat Transfer 3611 | . 231 120 153 630 102 1044 . 96 . 12 . 126 90 . . . 9 . 122 4 18 333 521 Effects 4 | . . . . 2 . . 2 . . . . . . . . . . . . . . . . Energy Bleed 1 | . . . . . . . 1 . . . . . . . . . . . . . . . . Interference 2 | . . . . 2 . . . . . . . . . . . . . . . . . . . Matter Decay 1 | . . . . . . . 1 . . . . . . . . . . . . . . . . Siege Activations 3 | . . . . . . . . . . . . . . . . . . . . . . 1 2 Total Turns 27 | . . . . . . . . . . . . . . . . . . . . . . 15 12 Longest Duration 15 | . . . . . . . . . . . . . . . . . . . . . . 15 7 Martial Activations . | . . . . . . . . . . . . . . . . . . . . . . . . Shielding Activations . | . . . . . . . . . . . . . . . . . . . . . . . . Robots Disrupted . | . . . . . . . . . . . . . . . . . . . . . . . . Combat Hostiles . | . . . . . . . . . . . . . . . . . . . . . . . . Robots Corrupted 58 | . . . . . . 1 . . 4 1 . 7 1 1 1 1 . 1 1 . . . 39 Combat Hostiles 52 | . . . . . . . . . 1 1 . 7 1 1 1 1 . . 1 . . . 38 Parts Fried 193 | . . . 1 . 1 2 . . 5 . . 16 5 7 8 3 2 3 11 . . . 129 Impact Corruptions 20 | . . . . . 1 1 . 2 13 . . . . . . . . 2 1 . . . . Robots Melted 3 | . . . . 1 1 . . . . . . . 1 . . . . . . . . . . Combat Hostiles 3 | . . . . 1 1 . . . . . . . 1 . . . . . . . . . . Parts Melted 41 | . 4 3 . 14 16 . . . . . . . 4 . . . . . . . . . . Heat Transferred 13135 | . 1776 888 1184 4883 3256 250 . 200 300 . . . 250 . . . . . . 111 37 . . Parts Sabotaged 1 | . . . . . . . . . . . . . . . . . . . . . . . 1 Parts Stolen . | . . . . . . . . . . . . . . . . . . . . . . . . Parts Stripped . | . . . . . . . . . . . . . . . . . . . . . . . . Power Chain Reactions 7 | . . . . . . 4 . 1 2 . . . . . . . . . . . . . . Alert | -11 -10 -10 -8 -8 -8 -6 -6 -6 -6 -6 -6 -5 -5 -5 -5 -5 -4 -4 -4 -4 -4 -4 -3 ------- Run | Yrd Mat Sub Mat Sto Rec Fac Was Fac Low Low Dat Pro Fac Upp Upp Zhi Pro Fac Ext Cet Arc Hub Res Maximum Alert Level 5 | . 1 . 1 1 . 3 1 . . . . . 1 . . . . 1 2 2 1 4 5 Low Security (%) 53 | . 97 . 99 96 100 . 35 100 . . . . 53 . . . . 32 51 . 83 22 . Level 1 22 | . 2 . . 3 . 28 64 . . . . . 46 . . . . 67 48 71 16 12 . Level 2 12 | . . . . . . 51 . . . . . . . . . . . . . 28 . 20 23 Level 3 5 | . . . . . . 20 . . . . . . . . . . . . . . . . 30 Level 4 4 | . . . . . . . . . . . . . . . . . . . . . . 43 30 Level 5 . | . . . . . . . . . . . . . . . . . . . . . . . 2 High Security 1 | . . . . . . . . . . . . . . . . . . . . . . . 12 Max Security . | . . . . . . . . . . . . . . . . . . . . . . . . Peak Influence 2135 | . 215 . 201 214 121 916 317 139 . . . . 285 . . . . 332 484 506 313 1263 2135 Initial 629 | . . . . 63 46 300 317 81 . . . . 194 . . . . 300 102 270 168 . 629 Average 291 | . 56 . 140 79 19 553 222 54 . . . . 198 . . . . 221 195 357 72 677 1086 Influence Increases 13087 | . 542 90 453 924 435 1634 7 390 230 40 . 705 480 140 135 15 140 780 1083 930 195 1553 2186 Destroy 0b10 Robot/C 6700 | . 360 80 300 580 60 700 . 140 200 40 . 380 280 120 100 . 120 260 620 380 80 400 1500 Destroy 0b10 Robot/NC 440 | . 15 . 5 40 150 45 . 10 . . . . 5 . . 15 10 30 30 10 . 40 35 Destroy Leader 1214 | . 80 10 62 118 . 176 . 62 30 . . 40 72 20 20 . 10 50 54 40 . 72 298 Allied During Kill 1090 | . . . . 69 . 1 . . . . . . . . . . . . 299 430 77 214 . Successful Hack 177 | . 8 . . 16 21 28 . 25 . . . . 38 . . . . . 12 . . . 29 Select Force Hacks 210 | . 30 . . . 150 . . 30 . . . . . . . . . . . . . . . Disable Machine 705 | . 30 . 15 60 30 180 . 15 . . . . 30 . . . . 15 30 30 30 210 30 Destroy Structure 1086 | . 4 . 11 11 24 149 7 18 . . . . 40 . . . . 110 38 40 8 512 114 Advance Influence 550 | . . . . . . 250 . . . . . . . . . . . 300 . . . . . Partial Spotted 120 | . . . . . . 45 . 30 . . . . 15 . . . . . . . . . 30 Lose Combat Pursuer 795 | . 15 . 60 30 . 60 . 60 . . . 285 . . 15 . . 15 . . . 105 150 Influence Decreases 10972 | . 333 299 302 954 435 849 797 367 250 159 . 396 629 300 112 38 140 569 810 992 617 354 1270 Entered New Map 2379 | . . 101 . 88 75 71 589 35 52 23 . . 115 60 . 23 . . 109 214 254 . 570 Time Decay 7398 | . 323 174 262 494 311 738 198 322 198 136 . 356 514 230 112 15 140 559 591 518 323 274 610 Lost Part 364 | . 10 24 40 60 20 20 10 10 . . . 30 . 10 . . . 10 10 . . 20 90 Lost Ally 652 | . . . . 162 . 20 . . . . . 10 . . . . . . 100 260 40 60 . Purge Threat 179 | . . . . 150 29 . . . . . . . . . . . . . . . . . . Squads Dispatched 69 | . 5 . 1 5 . 15 . 4 . . . 1 5 . . . . 4 2 . . 6 21 Investigation 8 | . 4 . 1 1 . . . 1 . . . . . . . . . . . . . 1 . Extermination 23 | . . . . . . 7 . 3 . . . . 4 . . . . 4 . . . 1 4 Reinforcement 13 | . 1 . . 2 . 3 . . . . . . 1 . . . . . 2 . . 3 1 Assault 18 | . . . . 2 . 1 . . . . . 1 . . . . . . . . . 1 13 Garrison 7 | . . . . . . 4 . . . . . . . . . . . . . . . . 3 Intercept . | . . . . . . . . . . . . . . . . . . . . . . . . Searches Triggered . | . . . . . . . . . . . . . . . . . . . . . . . . Construction Impeded 3 | . . . . . . 3 . . . . . . . . . . . . . . . . . Haulers Reinforced 2 | . . . . . . . . . . . . . . . . . . . . . . 2 . Active Scanning Responses . | . . . . . . . . . . . . . . . . . . . . . . . . Cargo Convoy Interrupts . | . . . . . . . . . . . . . . . . . . . . . . . . Stealth | -11 -10 -10 -8 -8 -8 -6 -6 -6 -6 -6 -6 -5 -5 -5 -5 -5 -4 -4 -4 -4 -4 -4 -3 --------- Run | Yrd Mat Sub Mat Sto Rec Fac Was Fac Low Low Dat Pro Fac Upp Upp Zhi Pro Fac Ext Cet Arc Hub Res Distress Signals 17 | . 1 . . 3 1 2 . 1 . . . . . . . . . 1 3 2 . 1 2 Communications Jammed 16 | . . . . . . . . . . . . . . . . . 2 7 2 . . . 5 Distress Signals 14 | . . . . . . . . . . . . . . . . . . 7 2 . . . 5 Times Spotted 471 | . 25 8 21 37 8 49 6 19 9 3 . 26 18 6 6 . 9 19 37 24 3 25 113 Peak Tracking Total 22 | . 5 3 6 7 2 5 3 3 3 1 . 13 5 4 4 . 5 7 4 5 2 6 22 Tactical Retreats 28 | . 1 . 3 2 1 2 . 2 . . . 7 . . 1 . . 1 . . . 3 5 Traps | -11 -10 -10 -8 -8 -8 -6 -6 -6 -6 -6 -6 -5 -5 -5 -5 -5 -4 -4 -4 -4 -4 -4 -3 ------- Run | Yrd Mat Sub Mat Sto Rec Fac Was Fac Low Low Dat Pro Fac Upp Upp Zhi Pro Fac Ext Cet Arc Hub Res Traps Triggered 15 | . 1 2 1 2 . 4 . 1 . . . . 2 . . . . . 1 . . 1 . Indirectly 1 | . . . . . . . . . . . . . . . . . . . . . . 1 . Trap Hack Attempts . | . . . . . . . . . . . . . . . . . . . . . . . . Triggered . | . . . . . . . . . . . . . . . . . . . . . . . . Disarmed . | . . . . . . . . . . . . . . . . . . . . . . . . Reprogrammed . | . . . . . . . . . . . . . . . . . . . . . . . . Reused . | . . . . . . . . . . . . . . . . . . . . . . . . Traps Extracted . | . . . . . . . . . . . . . . . . . . . . . . . . Installed . | . . . . . . . . . . . . . . . . . . . . . . . . Triggered . | . . . . . . . . . . . . . . . . . . . . . . . . Machines | -11 -10 -10 -8 -8 -8 -6 -6 -6 -6 -6 -6 -5 -5 -5 -5 -5 -4 -4 -4 -4 -4 -4 -3 ---------- Run | Yrd Mat Sub Mat Sto Rec Fac Was Fac Low Low Dat Pro Fac Upp Upp Zhi Pro Fac Ext Cet Arc Hub Res Machines Disabled 50 | . 2 1 1 4 2 12 . 1 . . . 1 2 . 1 . . 1 2 2 2 14 2 Max in Single Turn 6 | . 1 1 1 1 1 2 . 1 . . . . 1 . 1 . . 1 . 1 1 6 1 Network Hub 2 | . . . . . . . . . . . . . . . . . . . . . . 2 . Energy Cycler 1 | . . . . . . . . . . . . . . . . . . . 1 . . . . Machines Repaired . | . . . . . . . . . . . . . . . . . . . . . . . . Machines Dismantled . | . . . . . . . . . . . . . . . . . . . . . . . . Machines Sabotaged . | . . . . . . . . . . . . . . . . . . . . . . . . Overloaded Fab Kills . | . . . . . . . . . . . . . . . . . . . . . . . . Hacking | -11 -10 -10 -8 -8 -8 -6 -6 -6 -6 -6 -6 -5 -5 -5 -5 -5 -4 -4 -4 -4 -4 -4 -3 --------- Run | Yrd Mat Sub Mat Sto Rec Fac Was Fac Low Low Dat Pro Fac Upp Upp Zhi Pro Fac Ext Cet Arc Hub Res Machines Accessed 99 | . 9 1 3 11 10 14 . 11 . 2 4 . 13 2 . . . 5 7 . . 1 6 Terminals 51 | . 7 . 3 9 4 5 . 5 . . . . 6 . . . . 2 7 . . 1 2 Fabricators 1 | . . . . . . 1 . . . . . . . . . . . . . . . . . Repair Stations 2 | . . . . . . . . . . . . . 2 . . . . . . . . . . Recycling Units 24 | . 2 . . 1 5 5 . 4 . . . . 4 . . . . 1 . . . . 2 Scanalyzers 5 | . . . . . . 1 . 1 . . . . 1 . . . . . . . . . 2 Garrison Access 6 | . . . . 1 . 2 . 1 . . . . . . . . . 2 . . . . . Total Hacks 261 | . 29 1 8 23 30 25 . 18 . 5 29 . 30 8 . . . 9 23 . . 2 21 Successful 128 | . 11 1 3 12 17 8 . 10 . 5 29 . 13 8 . . . 1 5 . . . 5 Failed 131 | . 18 . 5 11 13 16 . 8 . . . . 17 . . . . 8 18 . . 2 15 Catastrophic 20 | . 1 . . 2 . 4 . 4 . . . . 3 . . . . 2 3 . . . 1 Database Lockouts 2 | . . . . . . 1 . . . . . . . . . . . . . . . . 1 Manual 121 | . 26 . 8 12 14 5 . 11 . . . . 13 . . . . 3 20 1 . 2 6 Terminals 140 | . 23 . 8 21 11 11 . 11 . . . . 17 . . . . 3 23 . . 2 10 Fabricators 2 | . . . . . . 2 . . . . . . . . . . . . . . . . . Repair Stations 3 | . . . . . . . . . . . . . 3 . . . . . . . . . . Recycling Units 50 | . 6 . . 1 17 7 . 5 . . . . 7 . . . . 2 . . . . 5 Scanalyzers 12 | . . . . . . 2 . 1 . . . . 3 . . . . . . . . . 6 Garrison Access 9 | . . . . 1 . 3 . 1 . . . . . . . . . 4 . . . . . Terminal Hacks 60 | . 3 1 1 5 4 . . 1 . 5 29 . 2 8 . . . . 1 . . . . Record 22 | . . . . . . . . . . 4 11 . . 7 . . . . . . . . . Part Schematic 10 | . . . 1 . . . . . . . 9 . . . . . . . . . . . . Robot Schematic 6 | . . . . . . . . . . . 6 . . . . . . . . . . . . Robot Analysis 3 | . 3 . . . . . . . . . . . . . . . . . . . . . . Prototype ID Bank 3 | . . . . . . . . . . . 3 . . . . . . . . . . . . Open Door 3 | . . . . 1 . . . . . 1 . . . 1 . . . . . . . . . Branch Access Points 2 | . . . . . . . . 1 . . . . 1 . . . . . . . . . . Terminal Index 1 | . . . . 1 . . . . . . . . . . . . . . . . . . . Recycling Unit Index 1 | . . . . . 1 . . . . . . . . . . . . . . . . . . Alert Level 1 | . . . . 1 . . . . . . . . . . . . . . . . . . . Unreport Threat 2 | . . . . 1 1 . . . . . . . . . . . . . . . . . . Zone Layout 3 | . . . . 1 . . . . . . . . 1 . . . . . 1 . . . . Proto ID Catalog 1 | . . 1 . . . . . . . . . . . . . . . . . . . . . Release Object 2 | . . . . . 2 . . . . . . . . . . . . . . . . . . Fabricator Hacks 2 | . . . . . . 2 . . . . . . . . . . . . . . . . . Load Schematic 1 | . . . . . . 1 . . . . . . . . . . . . . . . . . Build 1 | . . . . . . 1 . . . . . . . . . . . . . . . . . Repair Station Hacks 2 | . . . . . . . . . . . . . 2 . . . . . . . . . . Scan Component 1 | . . . . . . . . . . . . . 1 . . . . . . . . . . Repair 1 | . . . . . . . . . . . . . 1 . . . . . . . . . . Recycling Unit Hacks 15 | . 1 . . 1 2 2 . 3 . . . . 3 . . . . 1 . . . . 2 Retrieve Components 15 | . 1 . . 1 2 2 . 3 . . . . 3 . . . . 1 . . . . 2 Scanalyzer 4 | . . . . . . 1 . 1 . . . . . . . . . . . . . . 2 Retrieve Study 4 | . . . . . . 1 . 1 . . . . . . . . . . . . . . 2 Garrison Access Hacks . | . . . . . . . . . . . . . . . . . . . . . . . . Unauthorized Hacks 45 | . 7 . 2 6 11 3 . 5 . . . . 6 . . . . . 4 . . . 1 Terminals 36 | . 6 . 2 6 4 3 . 4 . . . . 6 . . . . . 4 . . . 1 Botnet 9 | . 1 . 1 1 1 1 . 1 . . . . 1 . . . . . 1 . . . 1 Skim 27 | . 5 . 1 5 3 2 . 3 . . . . 5 . . . . . 3 . . . . Fabricators . | . . . . . . . . . . . . . . . . . . . . . . . . Repair Stations . | . . . . . . . . . . . . . . . . . . . . . . . . Recycling Units 9 | . 1 . . . 7 . . 1 . . . . . . . . . . . . . . . Reject 1 | . . . . . 1 . . . . . . . . . . . . . . . . . . Mask 1 | . . . . . 1 . . . . . . . . . . . . . . . . . . Tunnel 7 | . 1 . . . 5 . . 1 . . . . . . . . . . . . . . . Scanalyzers . | . . . . . . . . . . . . . . . . . . . . . . . . Garrison Access . | . . . . . . . . . . . . . . . . . . . . . . . . Data Cores Recovered . | . . . . . . . . . . . . . . . . . . . . . . . . Used . | . . . . . . . . . . . . . . . . . . . . . . . . Hacking Detections 72 | . 8 . 3 7 5 12 . 9 . . . . 10 . . . . 5 7 1 . 1 4 Full Trace Events 3 | . 2 . . 1 . . . . . . . . . . . . . . . . . . . Feedback Events . | . . . . . . . . . . . . . . . . . . . . . . . . Feedback Blocked . | . . . . . . . . . . . . . . . . . . . . . . . . Robot Schematics Acquired 6 | . . . . . . . . . . . 6 . . . . . . . . . . . . Robots Built . | . . . . . . . . . . . . . . . . . . . . . . . . Authchips . | . . . . . . . . . . . . . . . . . . . . . . . . Time . | . . . . . . . . . . . . . . . . . . . . . . . . Total Robot Build Rating . | . . . . . . . . . . . . . . . . . . . . . . . . Part Schematics Acquired 10 | . . . 1 . . . . . . . 9 . . . . . . . . . . . . Parts Built 1 | . . . . . . 1 . . . . . . . . . . . . . . . . . Authchips 1 | . . . . . . 1 . . . . . . . . . . . . . . . . . Time 25 | . . . . . . 25 . . . . . . . . . . . . . . . . . Total Part Build Rating 1 | . . . . . . 1 . . . . . . . . . . . . . . . . . Part Studies Acquired 4 | . . . . . . 1 . 1 . . . . . . . . . . . . . . 2 Parts Repaired 1 | . . . . . . . . . . . . . 1 . . . . . . . . . . Time 13 | . . . . . . . . . . . . . 13 . . . . . . . . . . Parts Recycled . | . . . . . . . . . . . . . . . . . . . . . . . . Recycled Matter . | . . . . . . . . . . . . . . . . . . . . . . . . Retrieved Matter . | . . . . . . . . . . . . . . . . . . . . . . . . Retrieved Components 55 | . 10 . . 8 10 3 . 5 . . . . 6 . . . . 1 . . . . 12 Parts Scanalyzed . | . . . . . . . . . . . . . . . . . . . . . . . . Part Schematics Acquired . | . . . . . . . . . . . . . . . . . . . . . . . . Parts Damaged . | . . . . . . . . . . . . . . . . . . . . . . . . Bothacking | -11 -10 -10 -8 -8 -8 -6 -6 -6 -6 -6 -6 -5 -5 -5 -5 -5 -4 -4 -4 -4 -4 -4 -3 ------------ Run | Yrd Mat Sub Mat Sto Rec Fac Was Fac Low Low Dat Pro Fac Upp Upp Zhi Pro Fac Ext Cet Arc Hub Res Used RIF Installer . | . . . . . . . . . . . . . . . . . . . . . . . . Robots Hacked . | . . . . . . . . . . . . . . . . . . . . . . . . Non-combat . | . . . . . . . . . . . . . . . . . . . . . . . . Combat . | . . . . . . . . . . . . . . . . . . . . . . . . Robot Hacks Applied . | . . . . . . . . . . . . . . . . . . . . . . . . Relay Couplers Released . | . . . . . . . . . . . . . . . . . . . . . . . . Fabnet Peak Effective % . | . . . . . . . . . . . . . . . . . . . . . . . . Robots Rewired 15 | . . . . . . 1 . . . . . . . . . . . . 14 . . . . Allies Hacked . | . . . . . . . . . . . . . . . . . . . . . . . . Hacks Repelled . | . . . . . . . . . . . . . . . . . . . . . . . . Allies | -11 -10 -10 -8 -8 -8 -6 -6 -6 -6 -6 -6 -5 -5 -5 -5 -5 -4 -4 -4 -4 -4 -4 -3 -------- Run | Yrd Mat Sub Mat Sto Rec Fac Was Fac Low Low Dat Pro Fac Upp Upp Zhi Pro Fac Ext Cet Arc Hub Res Total Allies 44 | . . . . 12 . 1 . . . . . 1 . . . . . . 25 5 . . . Largest Group 21 | . . . . 10 . 1 . . . . . 1 . . . . . . 17 21 8 5 . Highest-Rated Group 1248 | . . . . 203 . 41 . . . . . 96 . . . . . . 825 1248 707 363 . Highest-Rated Ally 159 | . . . . 31 . 41 . . . . . 96 . . . . . . 159 159 152 96 . Total Orders 5 | . . . . . . . . . . . . . . . . . . . 2 2 . 1 . STAY 3 | . . . . . . . . . . . . . . . . . . . 1 1 . 1 . FOLLOW 2 | . . . . . . . . . . . . . . . . . . . 1 1 . . . Ally Attacks 362 | . . . . 42 . 2 . . . . . 7 . . . . . . 107 121 26 57 . Total Damage 10996 | . . . . 504 . 102 . . . . . 473 . . . . . . 2753 4219 842 2103 . Kills 44 | . . . . 2 . 1 . . . . . . . . . . . . 16 12 3 10 . Allies Corrupted 1 | . . . . . . 1 . . . . . . . . . . . . . . . . . Allies Melted 2 | . . . . . . . . 1 . . . 1 . . . . . . . . . . . Intel | -11 -10 -10 -8 -8 -8 -6 -6 -6 -6 -6 -6 -5 -5 -5 -5 -5 -4 -4 -4 -4 -4 -4 -3 ------- Run | Yrd Mat Sub Mat Sto Rec Fac Was Fac Low Low Dat Pro Fac Upp Upp Zhi Pro Fac Ext Cet Arc Hub Res Active Infowar (turns) 14578 | . . . . . . 2967 251 750 418 276 33 360 1263 935 537 276 455 1609 2088 2 105 327 1926 Sensors 13141 | . . . . . . 2697 251 209 409 276 33 360 1021 935 536 276 406 1523 1943 . 105 324 1837 IFF 1 | . . . . . . . . . . . . . . . 1 . . . . . . . . Traps 3094 | . . . . . . 270 . 750 108 . . . 242 . . . . 279 878 2 103 323 139 Jamming 1572 | . . . . . . . . . . . . . . . . . 49 265 893 . . . 365 Robot Analysis Total 2 | . 2 . . . . . . . . . . . . . . . . . . . . . . Derelict Logs Recovered 11 | . . 2 . . . . . . . 2 . 2 . 2 2 . 1 . . . . . . Drone Launches . | . . . . . . . . . . . . . . . . . . . . . . . . Drone Recoveries . | . . . . . . . . . . . . . . . . . . . . . . . . Exploration | -11 -10 -10 -8 -8 -8 -6 -6 -6 -6 -6 -6 -5 -5 -5 -5 -5 -4 -4 -4 -4 -4 -4 -3 ------------- Run | Yrd Mat Sub Mat Sto Rec Fac Was Fac Low Low Dat Pro Fac Upp Upp Zhi Pro Fac Ext Cet Arc Hub Res Turns Passed 30572 | . 977 1448 663 1311 5670 3747 404 756 418 309 33 1005 1407 997 569 337 490 1657 2459 1433 1472 750 2260 Spaces Moved 17730 | 1 432 723 315 524 2335 1815 191 1186 801 652 79 884 1390 1194 648 212 683 840 1054 481 141 236 913 Core 3 | . . . . . . . . 3 . . . . . . . . . . . . . . . Treads 2342 | . 423 723 82 . 12 276 . . . . . . . . . . . . . 179 141 236 270 Legs 7855 | 1 9 . 125 524 92 49 . . 730 652 79 884 1047 1194 648 114 . 243 519 302 . . 643 Wheels 2051 | . . . 108 . 1943 . . . . . . . . . . . . . . . . . . Hover 3080 | . . . . . 43 721 . 765 71 . . . 343 . . 98 683 356 . . . . . Flight 2399 | . . . . . 245 769 191 418 . . . . . . . . . 241 535 . . . . Fastest Speed 42 | 120 120 160 90 126 103 76 42 42 42 42 42 42 42 76 76 56 56 56 144 207 207 207 142 Average Speed 117 | 120 159 186 149 174 150 151 113 43 42 42 42 42 67 76 76 67 56 138 188 225 207 207 161 Slowest Speed 550 | 120 160 260 260 200 335 185 158 550 135 42 42 42 135 98 76 83 56 228 249 249 207 207 232 Overloaded Moves . | . . . . . . . . . . . . . . . . . . . . . . . . Propulsion Burnouts . | . . . . . . . . . . . . . . . . . . . . . . . . Robots Hopped 4 | . . . . . . . 4 . . . . . . . . . . . . . . . . Potential Cave-ins 2 | . . . . . . . . . . . . . . . . . . 2 . . . . . Cave-ins Triggered . | . . . . . . . . . . . . . . . . . . . . . . . . Exploration Rate (%) 58 | 2 88 44 24 72 99 40 79 27 85 75 68 65 28 96 70 57 86 18 86 68 77 26 30 Regions Visited 23 Branch Regions 15 Pre-discovered Areas 15 | . 2 1 . . 5 . . 1 . 1 1 . 3 1 . . . . . . . . . Known Exits Taken 18 | . . 1 1 1 . . . 1 1 1 1 1 1 1 1 1 1 1 1 1 1 1 . Unknown Exits Taken 3 | 1 1 . . . 1 . . . . . . . . . . . . . . . . . . Scrap Searched 26 | . . 10 . . . . . . 4 5 . . . 2 3 . 2 . . . . . . Spaces Dug 116 | . . . 2 1 4 30 2 4 . . . . 3 3 10 . 9 20 . . . . 28 Terrain Destroyed 849 | . . . 7 8 28 175 9 18 11 . . 3 25 11 10 . 34 61 15 4 . 369 61 Melee 3 | . . . . . . . . 3 . . . . . . . . . . . . . . . Projectile 425 | . . . 7 8 28 101 9 5 . . . 3 25 11 10 . 34 61 15 4 . 43 61 AOE 421 | . . . . . . 74 . 10 11 . . . . . . . . . . . . 326 . Terrain Rammed . | . . . . . . . . . . . . . . . . . . . . . . . . Walls Destroyed . | . . . . . . . . . . . . . . . . . . . . . . . . Machines Disabled . | . . . . . . . . . . . . . . . . . . . . . . . . Actions | -11 -10 -10 -8 -8 -8 -6 -6 -6 -6 -6 -6 -5 -5 -5 -5 -5 -4 -4 -4 -4 -4 -4 -3 --------- Run | Yrd Mat Sub Mat Sto Rec Fac Was Fac Low Low Dat Pro Fac Upp Upp Zhi Pro Fac Ext Cet Arc Hub Res Total 25973 | . 624 767 428 771 4310 2652 309 1383 863 681 78 1465 1815 1255 695 401 750 1259 1464 806 1319 423 1455 Wait 5827 | . 115 1 23 78 1650 550 52 145 44 10 . 498 289 12 7 167 10 277 128 270 1166 95 240 Move 17703 | . 431 722 314 523 2334 1815 185 1185 800 651 78 883 1389 1193 647 211 682 839 1053 480 140 235 913 Hop 1 | . . . . . . . 1 . . . . . . . . . . . . . . . . Pick Up 286 | . 13 6 13 31 60 40 2 5 1 8 . 11 25 5 1 3 2 26 12 9 . 2 11 Fast Attach 76 | . . 3 11 13 6 4 . 5 1 3 . . 11 3 2 3 . 1 1 3 1 4 1 Attach 47 | . 2 1 9 4 . 6 1 2 1 . . 2 3 1 . 2 . 4 3 . 1 1 4 Detach 20 | . . . . 4 3 . . . 1 . . . 4 . . 1 . . 2 . 2 3 . Swap 227 | . 5 1 6 10 3 43 5 . 3 2 . 8 11 7 5 1 14 17 21 2 3 10 50 Drop 291 | . 7 5 12 24 79 35 1 5 2 3 . 9 29 5 3 6 3 22 10 15 3 2 11 Fire 1301 | . 51 28 39 84 174 158 62 25 7 4 . 54 54 29 30 6 39 73 58 27 3 71 225 Melee 14 | . . . . . . . . 11 3 . . . . . . . . . . . . . . Ram 1 | . . . . . 1 . . . . . . . . . . . . . . . . . . Kick . | . . . . . . . . . . . . . . . . . . . . . . . . Crush 1 | . . . 1 . . . . . . . . . . . . . . . . . . . . Escape Stasis 15 | . . . . . . . . . . . . . . . . . . . 15 . . . . Rewire 163 | . . . . . . 1 . . . . . . . . . 1 . . 161 . . . . Trap . | . . . . . . . . . . . . . . . . . . . . . . . . Miscellaneous . | . . . . . . . . . . . . . . . . . . . . . . . . Route ------- -11/Scrapyard -10/Materials (discovered 6 exits: [*Mat x3] / [*Min x2] / *Sub) -10/Subcaves (discovered 2 exits: *Mat x2) -8/Materials (discovered 2 exits: [*Fac] / *Sto) -8/Storage (discovered 2 exits: [*Fac] / *Rec) -8/Recycling -6/Factory -6/Waste -6/Factory (discovered 3 exits: *Fac / *Low x2) -6/Lower Caves -6/Lower Caves -6/Data Miner -5/Proximity Caves -5/Factory (discovered 4 exits: *Fac x2 / *Upp x2) -5/Upper Caves -5/Upper Caves (discovered 2 exits: *Fac / *Zhi) -5/Zhirov -4/Proximity Caves -4/Factory (discovered 5 exits: Res x2 / *Upp / *Ext / Arm) -4/Extension (discovered 2 exits: *Res / *Cet) -4/Cetus (discovered 2 exits: *Res / *Arc) -4/Archives (discovered 2 exits: *Res / *Hub) -4/Hub_04(d) -3/Research History --------- Turn | Location | Event 1 | -11/Scrapyard | Discovered new exit (range 0) 1 | -11/Scrapyard | Entered Materials 7 | -10/Materials | Discovered new exit (range 14) 168 | -10/Materials | Discovered new exit (range 14) 286 | -10/Materials | Discovered new exit (range 5) 305 | -10/Materials | Build established: Mutant 511 | -10/Materials | Discovered new exit (range 4) 838 | -10/Materials | Learned Storage security intel 871 | -10/Materials | Learned Storage emergency access door positions 882 | -10/Materials | Discovered new exit (range 13) 896 | -10/Materials | Learned Storage stockpile data 913 | -10/Materials | Learned 2 Storage zone layouts 919 | -10/Materials | Learned 2 Mines zone layouts 930 | -10/Materials | Learned location of 2 exits from Mines 949 | -10/Materials | Learned Storage interactive machine intel 965 | -10/Materials | Discovered new exit (range 5) 978 | -10/Materials | Entered Subcaves 979 | -10/Subcaves | Approached by a straggling Scientist 979 | -10/Subcaves | Identified exit to Materials 985 | -10/Subcaves | Learned 2 Materials zone layouts 1654 | -10/Subcaves | Visited 4L-MR0's lab 1673 | -10/Subcaves | Found Tower Shield 1973 | -10/Subcaves | Disturbed a concealed Subdweller 1974 | -10/Subcaves | Core integrity fell below 50% 2305 | -10/Subcaves | Build established: Derelict-Mutant 2426 | -10/Subcaves | Entered Materials 2426 | -8/Materials | Evolved 4 slots: Propulsion x2, Utility x1, Weapon x1 2427 | -8/Materials | Identified exit to Storage 2917 | -8/Materials | Discovered new exit (range 16) 3029 | -8/Materials | Attached Tower Shield, gained temporary slots: Power, Propulsion x2, Utility x2, Weapon x2 3089 | -8/Materials | Entered Storage 3090 | -8/Storage | Identified exit to Recycling 3093 | -8/Storage | Loaded intel: 21 interactive machine locations 3327 | -8/Storage | Build established: Scavenger-Gunner 3754 | -8/Storage | Assisted by bots powering up and referring to "LRC-V3" 3825 | -8/Storage | Discovered new exit (range 5) 3916 | -8/Storage | Met a pair of Derelict thieves 4007 | -8/Storage | Lost 8 allies 4117 | -8/Storage | Lost 3 parts (1n1u1w) 4393 | -8/Storage | Used back door to open Recycling access 4400 | -8/Storage | Entered Recycling 4706 | -8/Recycling | Build established: Gunner 5022 | -8/Recycling | Build established: Scavenger-Gunner 5210 | -8/Recycling | Discovered new exit (range 16) 5356 | -8/Recycling | Entered Scraplab 5361 | -8/Recycling | Found Prototype Device 5361 | -8/Recycling | Identified Scrap Engine 5795 | -8/Recycling | Build established: Gunner 6141 | -8/Recycling | Build established: Construct 10070 | -8/Recycling | Entered Factory 10070 | -6/Factory | Evolved 4 slots: Power x1, Propulsion x1, Utility x2 10521 | -6/Factory | Central database locked down 10920 | -6/Factory | Fabricated Huge Storage Unit (x1) 12019 | -6/Factory | Discovered new exit (range 16) 12040 | -6/Factory | Identified exit to Factory 12673 | -6/Factory | Garrison activated, responded to threat 12870 | -6/Factory | First assault squad dispatched 13173 | -6/Factory | Core integrity fell below 50% 13817 | -6/Factory | Sucked down chute 13817 | -6/Factory | Entered Waste 13871 | -6/Waste | Spotted C-40 Crusher 13884 | -6/Waste | Spotted C-40 Crusher 14022 | -6/Waste | Destroyed C-40 Crusher 14024 | -6/Waste | Spotted C-40 Crusher 14036 | -6/Waste | Destroyed C-40 Crusher 14078 | -6/Waste | Destroyed C-40 Crusher 14105 | -6/Waste | Spotted C-40 Crusher 14105 | -6/Waste | Spotted C-40 Crusher 14132 | -6/Waste | Crushed by Compactor (0 parts destroyed, 1 dropped) 14135 | -6/Waste | Crushed by Compactor (0 parts destroyed, 1 dropped) 14165 | -6/Waste | Crushed by Compactor (0 parts destroyed, 1 dropped) 14190 | -6/Waste | Spotted C-40 Crusher 14213 | -6/Waste | Discovered new exit (range 13) 14221 | -6/Waste | Identified exit to Factory 14221 | -6/Waste | Entered Factory 14388 | -6/Factory | Identified exit to Lower Caves 14778 | -6/Factory | Allied Derelicts emerged from ambush trap array 14915 | -6/Factory | Discovered exit to Factory (range 6) 14977 | -6/Factory | Entered Lower Caves 15197 | -6/Lower Caves | Discovered new exit (range 10) 15394 | -6/Lower Caves | Identified exit to Lower Caves 15395 | -6/Lower Caves | Entered another Lower Caves area 15404 | -6/Lower Caves | Learned Factory stockpile data 15454 | -6/Lower Caves | Entered an active Warlord outpost 15463 | -6/Lower Caves | Learned Extension garrison access intel 15463 | -6/Lower Caves | Learned Research emergency access door positions 15495 | -6/Lower Caves | Attracted the attention of an 0b10 checkpoint 15662 | -6/Lower Caves | Discovered new exit (range 13) 15704 | -6/Lower Caves | Identified exit to Data Miner 15704 | -6/Lower Caves | Entered Data Miner 15704 | -6/Data Miner | Discovered new exit (range 6) 15712 | -6/Data Miner | Met Data Miner 15722 | -6/Data Miner | Learned location of Section 7 (-2) 15722 | -6/Data Miner | Acquired the access code to Warlord's prototype stash 15728 | -6/Data Miner | Received God Mode back door access code from Data Miner 15737 | -6/Data Miner | Identified exit to Proximity Caves 15737 | -6/Data Miner | Entered Proximity Caves 15920 | -5/Proximity Caves | Attracted the attention of an 0b10 outpost 16204 | -5/Proximity Caves | Lost 3 parts (1p2u) 16208 | -5/Proximity Caves | Learned 8 Factory zone layouts 16247 | -5/Proximity Caves | Core integrity fell below 20% 16284 | -5/Proximity Caves | Discovered exit to Factory (range 14) 16742 | -5/Proximity Caves | Entered Factory 16742 | -5/Factory | Evolved 2 slots: Propulsion x1, Utility x1 16743 | -5/Factory | Identified exit to Upper Caves 16744 | -5/Factory | Identified exit to Factory 16747 | -5/Factory | Discovered exit to Factory (range 6) 16925 | -5/Factory | Repaired Huge Storage Unit 17957 | -5/Factory | Learned Extension stockpile data 18043 | -5/Factory | Learned location of Warlord (-4) 18070 | -5/Factory | Learned Armory non-interactive machine intel 18086 | -5/Factory | Learned Testing trap positions 18094 | -5/Factory | Learned location of 1 exit from Quarantine 18102 | -5/Factory | Learned location of 1 exit from Proximity Caves 18120 | -5/Factory | Learned location of 1 exit from Proximity Caves 18147 | -5/Factory | Learned location of Extension (-4) 18149 | -5/Factory | Entered Upper Caves 18415 | -5/Upper Caves | Learned 8 Factory zone layouts 19024 | -5/Upper Caves | Learned Factory emergency access door positions 19030 | -5/Upper Caves | Entered an active Warlord outpost 19037 | -5/Upper Caves | Learned Factory stockpile data 19037 | -5/Upper Caves | Learned Factory security intel 19081 | -5/Upper Caves | Discovered new exit (range 13) 19143 | -5/Upper Caves | Identified exit to Upper Caves 19146 | -5/Upper Caves | Entered another Upper Caves area 19504 | -5/Upper Caves | Acquired the password to a Derelict Tinkerer's latest research 19541 | -5/Upper Caves | Learned Factory trap positions 19598 | -5/Upper Caves | Learned Factory garrison access intel 19670 | -5/Upper Caves | Discovered new exit (range 2) 19671 | -5/Upper Caves | Identified exit to Zhirov 19715 | -5/Upper Caves | Entered Zhirov 19715 | -5/Zhirov | Discovered new exit (range 3) 19729 | -5/Zhirov | Met Zhirov 19749 | -5/Zhirov | Found Alien Artifact 19749 | -5/Zhirov | Identified Integrated Dissipator 19749 | -5/Zhirov | Installed Integrated Dissipator, increased core heat dissipation (+20) 19988 | -5/Zhirov | Found Alien Artifact 20050 | -5/Zhirov | Identified exit to Proximity Caves 20052 | -5/Zhirov | Entered Proximity Caves 20076 | -4/Proximity Caves | Attracted the attention of an 0b10 checkpoint 20329 | -4/Proximity Caves | Spotter reported a threat 20436 | -4/Proximity Caves | Learned Research garrison access intel 20458 | -4/Proximity Caves | Spotter reported a threat 20542 | -4/Proximity Caves | Entered Factory 20542 | -4/Factory | Evolved 2 slots: Utility x1, Weapon x1 20543 | -4/Factory | Identified exit to Research 20543 | -4/Factory | Identified exit to Armory 20545 | -4/Factory | Loaded intel: 110 trap records 20549 | -4/Factory | Loaded intel: 4 garrison access locations 20974 | -4/Factory | Discovered new exit (range 4) 20978 | -4/Factory | Identified exit to Upper Caves 21600 | -4/Factory | System corruption reached 10% 21999 | -4/Factory | Discovered new exit (range 10) 22010 | -4/Factory | Identified exit to Extension 22199 | -4/Factory | Entered Extension 22302 | -4/Extension | Rescued a captive Derelict 22303 | -4/Extension | Rescued a captive Derelict 22730 | -4/Extension | Rescued a captive Derelict 22732 | -4/Extension | Rescued a captive Derelict 22910 | -4/Extension | Rescued a captive Derelict 22936 | -4/Extension | Rescued a captive Derelict 23232 | -4/Extension | Spotted B-86 Titan 23234 | -4/Extension | Allies destroyed B-86 Titan 23262 | -4/Extension | Spotted B-86 Titan 23279 | -4/Extension | Allies destroyed B-86 Titan 23320 | -4/Extension | Lost 3 allies 23358 | -4/Extension | Rescued A7 23816 | -4/Extension | Energy Cycler disabled 23816 | -4/Extension | Rescued a captive Derelict 23816 | -4/Extension | Rescued a captive Derelict 23817 | -4/Extension | Rescued a captive Derelict 23818 | -4/Extension | Rescued a captive Derelict 23818 | -4/Extension | Rescued a captive Derelict 23819 | -4/Extension | Rescued a captive Derelict 23829 | -4/Extension | Rescued a captive Derelict 24352 | -4/Extension | Build established: Commander-Construct 24583 | -4/Extension | Discovered exit to Research (range 10) 24586 | -4/Extension | Discovered new exit (range 6) 24616 | -4/Extension | Identified exit to Cetus 24658 | -4/Extension | Entered Cetus 24658 | -4/Cetus | Accompanied by 17 allies (A7) 24663 | -4/Cetus | Acquired a Cetus Manufacturing Module code from A7 24719 | -4/Cetus | Spotted Cetus Guard 24719 | -4/Cetus | Spotted Cetus Guard 24719 | -4/Cetus | Spotted Cetus Guard 24721 | -4/Cetus | Spotted Cetus Guard 24721 | -4/Cetus | Destroyed Cetus Guard 24721 | -4/Cetus | Destroyed Cetus Guard 24734 | -4/Cetus | Allies destroyed Cetus Guard 24734 | -4/Cetus | Allies destroyed Cetus Guard 24841 | -4/Cetus | Started Cetus Manufacturing Module 24866 | -4/Cetus | Manufactured an Enhanced Grunt 24891 | -4/Cetus | Manufactured an Enhanced Grunt 24916 | -4/Cetus | Manufactured an Enhanced Grunt 24941 | -4/Cetus | Manufactured an Enhanced Grunt 24966 | -4/Cetus | Manufactured an Enhanced Grunt 25022 | -4/Cetus | Escorted A7 to Cetus Mainframe 25059 | -4/Cetus | Discovered new exit (range 16) 25098 | -4/Cetus | Spotted Cetus Guard 25098 | -4/Cetus | Spotted Cetus Guard 25099 | -4/Cetus | Spotted Cetus Guard 25099 | -4/Cetus | Spotted Cetus Guard 25105 | -4/Cetus | Destroyed Cetus Guard 25108 | -4/Cetus | Allies destroyed Cetus Guard 25115 | -4/Cetus | Allies destroyed Cetus Guard 25115 | -4/Cetus | Destroyed Cetus Guard 25136 | -4/Cetus | Discovered exit to Research (range 16) 25151 | -4/Cetus | Met Revision 17 25408 | -4/Cetus | Security sweep announced 25465 | -4/Cetus | Lost 3 allies 25525 | -4/Cetus | Lost 5 allies 25730 | -4/Cetus | Cetus Manufacturing Module disabled 25753 | -4/Cetus | Lost 3 allies 26075 | -4/Cetus | Identified exit to Archives 26091 | -4/Cetus | Entered Archives 26091 | -4/Archives | Accompanied by 8 allies (A7) 26096 | -4/Archives | Received a hacking code to weaken MAIN.C 26158 | -4/Archives | Found Prototype Device 26158 | -4/Archives | Identified Exp. Thermal Shield 26492 | -4/Archives | Discovered exit to Research (range 16) 26548 | -4/Archives | Discovered new exit (range 16) 26577 | -4/Archives | Identified exit to Hub_04(d) 27563 | -4/Archives | Entered Hub_04(d) 27563 | -4/Hub_04(d) | Accompanied by 5 allies 27793 | -4/Hub_04(d) | Discovered exit to Research (range 6) 27907 | -4/Hub_04(d) | Lost 3 allies 27982 | -4/Hub_04(d) | Network Hub disabled 27986 | -4/Hub_04(d) | Network Hub disabled 27997 | -4/Hub_04(d) | Spotted Lightning 28012 | -4/Hub_04(d) | Build established: Construct 28019 | -4/Hub_04(d) | Spotted Lightning 28019 | -4/Hub_04(d) | Spotted Lightning 28092 | -4/Hub_04(d) | Destroyed Lightning 28098 | -4/Hub_04(d) | Destroyed Lightning 28117 | -4/Hub_04(d) | Found Prototype Device 28117 | -4/Hub_04(d) | Identified Exp. Phase Shifter 28123 | -4/Hub_04(d) | Found Prototype Device 28123 | -4/Hub_04(d) | Identified Exp. EM Shield 28141 | -4/Hub_04(d) | Found Prototype Processor 28141 | -4/Hub_04(d) | Identified Exp. Targeting Computer 28146 | -4/Hub_04(d) | Found Exp. EM Shield 28313 | -4/Hub_04(d) | First assault squad dispatched 28313 | -4/Hub_04(d) | Entered Research 28313 | -3/Research | Evolved 2 slots: Power x1, Utility x1 28315 | -3/Research | Loaded intel: 4 garrison access locations 28742 | -3/Research | Watched by a mysterious "MATRIX" hacker 28813 | -3/Research | First assault squad dispatched 29583 | -3/Research | Destroyed 13 combat bots 29902 | -3/Research | Garrison activated, responded to threat 29947 | -3/Research | Destroyed 10 combat bots 30083 | -3/Research | Central database locked down 30297 | -3/Research | High security lockdown imminent 30377 | -3/Research | High security lockdown engaged 30488 | -3/Research | System corruption reached 10% 30552 | -3/Research | Destroyed 11 combat bots 30573 | -3/Research | Self-destructed Last Messages --------------- 30564_ Com. Wheel fried. 30565_ C-45 Heavy ARC bursts open, deploying its payload. 30565_ G-73 Enforcer unfolds itself. 30565_ B-74 Champion unfolds itself. 30565_ G-67 Veteran unfolds itself. 30565_ I-47 Archangel unfolds itself. 30565_ Treaded Biometal Exoskeleton destroyed. 30565_ Treaded Biometal Exoskeleton core remains intact and functional. 30565_ Adv. Sensor Array destroyed. 30567_ Adv. Heat Sink fried. 30567_ G-73 Enforcer destroyed. 30571_ Adv. Signal Interpreter destroyed. 30571_ Exp. EM Shield destroyed. 30571_ System corrupted by crushing effect (+4). 30571_ System corrupted by crushing effect (+2). 30571_ M-36 Artificer repairs M-36 Artificer. 30571_ L-61 Swordsman suffers critical hit (Burn). Map ----- +----------------------------------------------------+ | ???????????????????????????????????????????? | | ???????????????????????????????????????????? | | ???????????????????????????????????????????? | | ???????????????????????????????????????????? | | ???????????????????????????????????????????? | | ???????????????????????????????????????????? | | ???????????????????????????????????????????? | | ???????????????????????????????????????????? | | ???????????????????????????????????????????? | | ???????????????????????????????????????????? | | ?????????????????????????? ????????????????? | | ?????????????????????????? # ?????????????? | | ??????????????????????####;# #???????????? | | ??????????????????????# #? ????????? | | ??????????????????????# + ?????????? | | ??????????????????????# % # ??????????? | | ??????????????????????# i ;######?????? | | ??????????????????????# m g ?????? | | ??????????????????????# b g ????? | | ??????????????????????# m b% ????? | | ??????????????????????# =ggg ????? | | ??????????????????????# [bgg ???? | | ??????????????????????# *b=! ????? | | ??????????????????????#[=[*[ ??????? | | ??????????????????????#gbb== #???????????? | | ????????????????????###=%@=[ #???????????? | | ????????????????????#!m%gll% + #???????? | | ????????????????????#=#!%%=#####???????????? | | ????????????????????# #=!%* #?????????????? | | ????????????????????# =!=! #?????????????? | | ????????????????????#%#|=! #?????????????? | | ????????????????????# # [#?????????????? | | ????????????????????# # ![!=#????????????? | | ????????????????????# # =*%##????????????? | | ??????????????#####?# #;#;;##!# #??????? | | ??????????????"""" ?# +??"???? | | ?????????????""""" # ###### ??????""??? | | ????????????? """" # #????? ?????G???? | | ????????????? """" + #??????#"#????""??? | | ??????????# #*%! #????????#????"???? | | ??????????# ! # = #?????????????????? | | ??????????# = ?#= #?????????????????? | | ??????????# ?#%| #?????????????????? | | ??????????###########! #?????????????????? | | ??????????# # #?????????????????? | | ??????????# / #???####??????????? | | ??????????# # #?? ??????????? | | ??????????# """ # #?? ???????????? | | ??????????# R" ?#!! #? """"???????????? | | ??????????# """ ?#%! #? """"???????????? | +----------------------------------------------------+ Best States ------------- Heat Dissipation 125 Coolant Potential 65 Energy Generation 84 Energy Capacity 988 Matter Stores 304 Matter Capacity 550 Sight Range 16 Robot Scan Range 16 Terrain Scan Density 10 Jamming Range 14 Armor Coverage 2000 Resistance: TH 30 Resistance: EM 75 Weapon Cycling 15 Phase Shifting 20 Evasion (%) 75 Targeting Accuracy 12 Target Analysis 5 Core Analysis 6 Recoil Reduction 6 Offensive Hacking 10 Authchip Count 1 Item Schematics ----------------- Huge Storage Unit | -8/Materials | Hacked Combat Drone Bay | -6/Data Miner | Free Lgt. Regenerative Plating | -6/Data Miner | Free Cld. Gravmag System | -6/Data Miner | Free Exp. Heat Sink | -6/Data Miner | Free Mni. Smartbomb Launcher | -6/Data Miner | Free Imp. Antigrav System | -6/Data Miner | Free Adv. Coolant Injector | -6/Data Miner | Free Railgun | -6/Data Miner | Free Matter Neutralizer | -6/Data Miner | Free Robot Schematics ------------------ B-60 Warrior | -6/Data Miner | Free G-50 Soldier | -6/Data Miner | Free S-27 Virus | -6/Data Miner | Free R-10 Processor | -6/Data Miner | Free M-22 Extractor | -6/Data Miner | Free G-67 Veteran | -6/Data Miner | Free Fabricated ------------ Huge Storage Unit | x1 | -6/Factory | Authchip Repaired ---------- Huge Storage Unit | 46% | -5/Factory Studied --------- Flak Gun | -6/Factory | Hacked Gauss Rifle | -6/Factory | Hacked HERF Cannon | -3/Research | Hacked Gamma Rifle | -3/Research | Hacked Alien Tech Used ----------------- Integrated Dissipator Achievements -------------- None Challenges ------------ None Game ------ Seed PersonalGatlingTerrabomb Manual? 0 Play Time 04:15:32 Cumulative 436.5 hours Start 2026.09.19 @ 20:37:56 End 2026.09.20 @ 18:41:11 Sessions 3 Manual Loads 0 Difficulty Rogue Special Mode None Game No. 380 Rogue 326 Adventurer 54 Explorer 0 Win Type - Total 25 Types 15/2/1/1/1/1/1/1/1/1 Lore% 83 Gallery% 72 Achievement% 72 Wizard Run 0 Options --------- Layout 1 ASCII 0 Keyboard 0 Movement Mouse Keybinds 1 Fullscreen 2 Font 32/Tamsyn Map View 50x35 Zoom Use 0% Tactical HUD 1 Map Filters NONE Filters NONE Steam 1 RUN: 81b6d108-7ef8-4426-b2bb-a5f238f02995